[Event "1000GM Schev-G2 March 2024"]
[Site "Santa Clara"]
[Date "2024.03.09"]
[Round "1.4"]
[White "Stopa, Jacek"]
[Black "Iinuma, Paul Y"]
[Result "1-0"]
[ECO "A11"]
[WhiteElo "2335"]
[BlackElo "2141"]
[Annotator "TA"]
[PlyCount "61"]
[EventDate "2024.03.06"]
[EventType "schev"]
[EventCountry "USA"]
[SourceTitle "playchess.com"]
[Source "ChessBase"]
[SourceQuality "1"]
[TimeControl "5400+30"]

{[%evp 9,61,0,0,2,4,0,27,27,41,28,27,30,42,39,45,48,36,38,34,27,43,29,32,10,32,19,30,12,41,16,61,66,67,25,144,146,161,165,712,661,715,551,558,554,535,241,605,573,610,589,600,574,29997,29998]} 1. Nf3 {[%emt 0:00:03]} d5 {[%emt 0:15:20]} 2. c4 {[%emt 0:01:00]} c6 {[%emt 0:00:39]} 3. e3 {[%emt 0:01:23]} Nf6 {[%emt 0:00:09]} 4. Nc3 {[%emt 0:02:08]} e6 {[%emt 0:01:08]} 5. Qc2 {[%emt 0:04:06]} Nbd7 {[%emt 0:00:30]} 6. b3 {[%emt 0:00:47]} Bd6 {[%emt 0:00:13]} 7. Bb2 {[%emt 0:00:50]} a6 {[%emt 0:05:38]} 8. d4 {[%emt 0:02:21] White has an edge.} Qe7 {[%emt 0:04:22]} 9. Be2 {[%emt 0:00:28]} b6 {[%emt 0:04:45]} 10. O-O {[%emt 0:03:29]} Bb7 {[%emt 0:01:40]} 11. e4 {[%emt 0:02:17]} dxe4 {[%emt 0:00:37]} 12. Nxe4 {[%emt 0:00:10]} Nxe4 {[%emt 0:01:37]} 13. Qxe4 {[%emt 0:00:11]} Nf6 {[%emt 0:08:46]} 14. Qc2 {[%emt 0:00:38]} O-O {[%emt 0:05:08]} 15. Rfe1 {[%emt 0:11:11]} h6 {[%emt 0:10:18]} 16. Bd3 {[%emt 0:07:08]} Rfe8 {[%emt 0:03:33]} 17. Rac1 {[%emt 0:10:05]} Rad8 {[%emt 0:00:26]} 18. h3 {[%emt 0:06:10]} Kh8 {[%emt 0:21:58]} 19. Ne5 {[%emt 0:07:46]} c5 {[%emt 0:01:41]} 20. dxc5 {[%emt 0:04:07]} bxc5 {[%emt 0:00:32]} 21. Re3 {[%emt 0:02:33] White is more active.} Qc7 {[%emt 0:00:32]} (21... Nd7 $11 {keeps the balance.}) 22. Rce1 {[%emt 0:01:58]} Kg8 {[%emt 0:00:02]} 23. Qe2 {[%emt 0:01:25]} Nd7 $2 {[%emt 0:03:26] [#]} (23... Nh7 24. Qg4 f5) 24. Nxf7 $1 $18 {[%emt 0:10:52][%mdl 512]} Kxf7 {[%emt 0:00:02]} (24... e5 25. Nxh6+) 25. Qh5+ {[%emt 0:02:31]} (25. Rxe6 Be5 26. Qh5+ (26. Bxe5 Nxe5 27. Qxe5 Qxe5 $15) (26. Rxe5 Rxe5 27. Bxe5 Qxe5 $15) (26. Rxe8 $2 Rxe8 27. Qh5+ Kf8 $19) 26... Kxe6 $11) 25... Kg8 {[%emt 0:01:45] [#]} 26. Bxg7 $1 {[%emt 0:01:43][%mdl 512]} Nf8 {[%emt 0:00:57]} 27. Bf6 $40 {[%emt 0:02:45][%mdl 128] White has strong attack.} (27. Bxh6 $142 {White threatens Qg5+ and mate.} Re7 28. Be4) 27... Bh2+ $2 {[%emt 0:03:25]} (27... Re7 28. Be4 (28. Qxh6 Rg7 $18) 28... Rdd7 29. Qxh6 Rg7) 28. Kh1 {[%emt 0:01:40]} Rxd3 {[%emt 0:01:19]} 29. Rxd3 {[%emt 0:01:31]} (29. Qxe8 Rxe3 30. Rxe3 Qf7 31. Qxf7+ Kxf7 $11) 29... Qf4 {[%emt 0:00:35]} 30. Be5 {[%emt 0:02:55]} ({Worse is} 30. Qxe8 Qxf2 $15) 30... Qxf2 {[%emt 0:03:55][%csl Gb7][%cal Rf2g2]} 31. Qg4+ {[%emt 0:00:26] Weighted Error Value: White=0.28 (precise) /Black=0.58.  Mistake:       	White=1     	Black=3      Inaccurate:     	White=1     	Black=4      OK:         	White=5     	Black=3      Best:        	White=1     	Black=1      Brilliant:      	White=1     	---} 1-0

[Event "1000GM Schev-G2 March 2024"]
[Site "Santa Clara"]
[Date "2024.03.09"]
[Round "1.5"]
[White "Figueredo Losada, Leonel"]
[Black "Zhou, Ruoyu"]
[Result "1-0"]
[ECO "A14"]
[WhiteElo "2325"]
[BlackElo "2168"]
[Annotator "TA"]
[PlyCount "135"]
[EventDate "2024.03.06"]
[EventType "schev"]
[EventCountry "USA"]
[SourceTitle "playchess.com"]
[Source "ChessBase"]
[SourceQuality "1"]
[TimeControl "5400+30"]

{[%evp 22,135,1,-16,35,40,52,29,45,44,59,46,62,35,42,42,62,70,59,69,72,0,0,15,8,0,50,88,91,80,105,84,140,153,157,140,160,151,189,106,104,68,67,66,61,68,125,75,138,149,147,46,60,80,80,80,80,80,80,75,80,81,81,81,81,81,81,81,81,81,98,81,81,81,98,98,98,59,156,0,98,98,84,84,980,468,1373,1047,1210,420,1806,1843,1713,1325,29970,29970,29983,29984,29984,29985,29985,29986,29986,29987,29987,29988,29989,29990,29990,29991,29991,29992,29992,29993,29993,29994]} 1. Nf3 {[%emt 0:00:10]} d5 {[%emt 0:00:07]} 2. g3 {[%emt 0:00:25]} e6 {[%emt 0:00:14]} 3. c4 {[%emt 0:00:20]} Nf6 {[%emt 0:00:34]} 4. Bg2 {[%emt 0:00:25]} Be7 {[%emt 0:00:22]} 5. b3 {[%emt 0:00:19]} O-O {[%emt 0:00:48]} 6. Bb2 {[%emt 0:00:03]} c5 {[%emt 0:01:06]} 7. O-O {[%emt 0:02:07] 7.cxd5 ist modischer.} d4 {[%emt 0:01:02] A14: Reti-Eröffnung.} 8. b4 {[%emt 0:02:06]} a5 {[%emt 0:07:38]} 9. bxc5 {[%emt 0:10:37]} Nc6 {[%emt 0:02:51]} 10. d3 {[%emt 0:06:03]} Bxc5 {[%emt 0:03:01]} 11. Ba3 {[%emt 0:06:27]} Nd7 {[%emt 0:01:16]} 12. Nfd2 {[%emt 0:01:41]} Bxa3 $146 {[%emt 0:10:29]} (12... e5 $11) ({Predecessor:} 12... Qe7 13. Bxc5 Nxc5 14. Ne4 Na6 15. Qc1 Bd7 16. Na3 f5 17. Ng5 Nc5 18. Nb5 h6 19. Nf3 e5 {0-1 Pinheiro,I (2320)-Kollars,D (2637) Titled Tuesday intern op 03rd May Late blitz 2022 (1)}) 13. Nxa3 $14 {[%emt 0:00:08]} Nc5 {[%emt 0:04:15]} 14. Ne4 {[%emt 0:04:38]} Nxe4 {[%emt 0:02:23]} 15. Bxe4 {[%emt 0:00:02]} e5 {[%emt 0:00:19]} 16. Qb3 {[%emt 0:00:23]} a4 {[%emt 0:09:30]} 17. Qb5 {[%emt 0:02:24]} Qe7 {[%emt 0:01:32]} 18. Nc2 {[%emt 0:00:08]} Ra5 {[%emt 0:02:17]} 19. Qb2 {[%emt 0:00:24]} f5 {[%emt 0:01:43]} 20. Bd5+ {[%emt 0:04:53]} Be6 {[%emt 0:00:39]} 21. Bxe6+ {[%emt 0:01:42]} (21. Bg2 $16) 21... Qxe6 $11 {[%emt 0:00:03]} 22. Rab1 {[%emt 0:00:05]} Rf7 {[%emt 0:01:44]} 23. Nb4 {[%emt 0:06:32]} Nxb4 {[%emt 0:00:59]} (23... Ne7 $11) 24. Qxb4 $14 {[%emt 0:00:03]} Ra6 {[%emt 0:00:42]} 25. Qc5 {[%emt 0:00:36]} Rc6 {[%emt 0:10:22]} 26. Qa5 {[%emt 0:01:18]} Ra6 {[%emt 0:05:39]} (26... h6 $142) 27. Qd8+ $16 {[%emt 0:00:30]} Rf8 {[%emt 0:00:15]} 28. Qc7 {[%emt 0:00:03]} Rc6 {[%emt 0:05:39]} 29. Qxb7 {[%emt 0:01:54]} f4 {[%emt 0:00:41]} 30. Rb5 {[%emt 0:05:17]} (30. Rb4 $1 $18) 30... e4 $16 {[%emt 0:04:00]} 31. Re5 {[%emt 0:01:15]} Qxe5 {[%emt 0:00:23]} 32. Qxc6 {[%emt 0:00:02]} exd3 {[%emt 0:01:29]} 33. exd3 {[%emt 0:00:04]} (33. Qxa4 $2 dxe2 (33... Qxe2 $2 34. Qd7 $19) 34. Re1 d3 $19) 33... f3 {[%emt 0:01:47]} (33... Qf5 $14) 34. h3 {[%emt 0:05:32]} (34. Qxa4 Qf5 35. Kh1 Qxd3 $19) (34. h4 $142) 34... Qf5 {[%emt 0:01:21]} (34... a3 $142) 35. Re1 $16 {[%emt 0:04:44]} (35. Qxa4 $2 {wird mattgesetzt.} Qxh3 36. Re1 Qg2#) 35... h6 {[%emt 0:07:31]} 36. Qe6+ {[%emt 0:10:18]} (36. Qxa4 $2 {führt zum Matt.} Qxh3 37. Rf1 Qg2#) ({Besser ist} 36. Qd5+ $1 $16 Qxd5 37. cxd5) 36... Qxe6 $14 {[%emt 0:00:09]} 37. Rxe6 {[%emt 0:00:02]} Rb8 {[%emt 0:00:21]} 38. g4 {[%emt 0:00:15]} Rb2 {[%emt 0:03:29]} 39. Rd6 {[%emt 0:00:13]} Rxa2 {[%emt 0:00:36]} 40. Rxd4 {[%emt 0:00:04]} Rd2 {[%emt 0:02:17]} 41. Rd8+ {[%emt 0:01:12]} Kh7 {[%emt 0:00:20]} 42. Ra8 {[%emt 0:00:23]} Rxd3 {[%emt 0:01:08]} 43. Rxa4 {[%emt 0:00:03]} Rd2 {[%emt 0:00:17]} 44. Ra6 {[%emt 0:01:47]} Rc2 {[%emt 0:00:24]} 45. Rc6 {[%emt 0:00:03]} g5 {[%emt 0:01:04]} 46. c5 {[%emt 0:00:23]} Kg7 {[%emt 0:00:15]} 47. Rc8 {[%emt 0:00:46]} Kh7 {[%emt 0:01:00]} 48. c6 {[%emt 0:01:10]} Kg7 {[%emt 0:00:15]} 49. Rc7+ {[%emt 0:04:21]} Kg6 {[%emt 0:00:50] [#]} ({Günstiger ist} 49... Kf6 $14) 50. Rc8 {[%emt 0:01:41]} (50. Kh2 $142 $1 {[%cal Rh2g3]}) 50... Kg7 $1 $16 {[%emt 0:00:08]} 51. Kh2 {[%emt 0:02:18]} Rxf2+ {[%emt 0:01:52]} 52. Kg3 {[%emt 0:00:02]} Rc2 $2 {[%emt 0:01:12][%mdl 8192]} (52... Re2 $16) 53. Kxf3 $18 {[%emt 0:03:16]} Rc3+ {[%emt 0:00:24]} (53... h5 $142 54. gxh5 Rc3+ 55. Kg4 Rc5) 54. Ke4 $18 {[%emt 0:01:25]} Rxh3 {[%emt 0:00:45]} 55. Kd4 {[%emt 0:00:47]} (55. Rb8 $142 {Weiss droht c7 und Matt.} Rc3 56. Kd5) 55... Rh1 {[%emt 0:00:34] [#]} (55... Rh2 $142 56. Re8 Rd2+ 57. Kc5 Rc2+ 58. Kd6 Rd2+ 59. Kc7 Rg2 60. Re7+ Kf8) 56. Re8 $1 $18 {[%emt 0:00:07]} Rc1 {[%emt 0:00:50]} 57. Kd5 {[%emt 0:00:05]} Kf7 {[%emt 0:02:44]} 58. Re4 {[%emt 0:00:05]} Ra1 {[%emt 0:02:44]} 59. c7 {[%emt 0:00:59]} Ra8 {[%emt 0:00:28]} 60. Kc6 {[%emt 0:00:06]} Kg7 {[%emt 0:00:59]} 61. Kb7 {[%emt 0:00:15]} Rf8 {[%emt 0:00:19]} 62. c8=Q {[%emt 0:00:12]} Rxc8 {[%emt 0:00:17]} 63. Kxc8 {[%emt 0:00:04]} h5 {[%emt 0:00:21]} 64. gxh5 {[%emt 0:00:02]} Kh6 {[%emt 0:00:13]} 65. Kd7 {[%emt 0:00:02]} Kxh5 {[%emt 0:00:19]} 66. Ke6 {[%emt 0:00:02]} g4 {[%emt 0:00:25]} 67. Kf5 {[%emt 0:00:06]} g3 {[%emt 0:00:17]} 68. Rg4 {[%emt 0:18:36]} 1-0

[Event "1000GM Schev-G2 March 2024"]
[Site "Santa Clara"]
[Date "2024.03.10"]
[Round "2.1"]
[White "Filgueiras, Nathan Felipe"]
[Black "Tang, Dylan"]
[Result "1/2-1/2"]
[ECO "C54"]
[WhiteElo "2316"]
[BlackElo "2152"]
[Annotator "TA"]
[PlyCount "53"]
[EventDate "2024.03.06"]
[EventType "schev"]
[EventCountry "USA"]
[SourceTitle "playchess.com"]
[Source "ChessBase"]
[SourceQuality "1"]
[TimeControl "5400+30"]

{[%evp 12,53,18,8,16,6,10,12,18,0,17,12,23,20,27,5,25,27,59,61,60,48,80,57,69,47,122,133,131,124,119,122,127,63,91,93,140,114,123,107,136,0,0,-31]} 1. e4 e5 2. Nf3 Nc6 3. Bc4 Bc5 4. O-O Nf6 5. d3 d6 6. c3 O-O 7. Nbd2 {[%cal Bb1d2,Bd2f1,Bf1g3][%mdl 32]} a5 8. h3 h6 9. Re1 Be6 10. b3 Ba7 11. Nf1 Ne7 12. Ng3 Ng6 13. Qc2 Bd7 {Hoping for ...b5.} 14. d4 Qc8 15. Be3 b5 {[%cal Bb7b5,Bb5b4][%mdl 32]} 16. Bd3 b4 17. Rec1 Bb6 18. Qd2 Qb8 {[#]} (18... bxc3 $14 19. Rxc3 exd4 20. Bxd4 Bxd4 21. Nxd4 Qb7) 19. c4 $1 $16 ({Reject} 19. cxb4 $6 axb4 20. dxe5 dxe5 $11) 19... c6 20. c5 dxc5 21. dxc5 Bc7 {[#]} 22. Bc4 {[%emt 0:11:00]} (22. Bxh6 $1 $16 {[%cal Od3c4]} Qe8 (22... gxh6 $2 {loses.} 23. Qxh6 Bd8 24. Bc4 $18) 23. Be3) 22... Kh7 {[%emt 0:11:00]} 23. Nh5 {[%emt 0:00:30] And now Nxf6+ would win.} Nxh5 {[%emt 0:00:30]} ({Black should play} 23... Qe8 24. Nxf6+ gxf6) 24. Qxd7 {[%emt 0:00:30]} Nf6 {[%emt 0:00:30][%csl LRd7,LRe4]} 25. Qxc6 {[%emt 0:00:30] White has more active pieces.} a4 {[%emt 0:00:30]} 26. bxa4 {[%emt 0:00:30]} ({White should try} 26. Qb5 $16) 26... Ra5 $1 $11 {[%emt 0:00:30] Strongly threatening ...Ne7.} 27. Bd5 {[%emt 0:00:30] Weighted Error Value: White=0.19 (very precise) /Black=0.15 (very precise) .  Mistake:       	White=2     	Black=2      Inaccurate:     	White=1     	Black=3      OK:         	White=6     	Black=3      Best:        	White=1     	Black=1      Strong:       	White=1     	Black=1} 1/2-1/2

[Event "1000GM Schev-G2 March 2024"]
[Site "Santa Clara"]
[Date "2024.03.09"]
[Round "2.1"]
[White "Filgueiras, Nathan Felipe"]
[Black "Tang, Dylan"]
[Result "*"]
[ECO "C60"]
[WhiteElo "2316"]
[BlackElo "2152"]
[Annotator "RC"]
[PlyCount "168"]
[EventDate "2024.03.06"]
[EventType "schev"]
[EventCountry "USA"]
[SourceTitle "playchess.com"]
[Source "ChessBase"]
[SourceQuality "1"]
[TimeControl "5400+30"]

1. e4 {[%emt 0:05:42]} e5 {[%emt 0:00:18]} 2. Nf3 {[%emt 0:01:05]} Nc6 {[%emt 0:00:09]} 3. Bb5 {[%emt 0:00:05]} Nge7 {[%emt 0:00:55]} 4. O-O {[%emt 0:05:17]} g6 {[%emt 0:02:24]} 5. d4 {[%emt 0:02:57]} exd4 {[%emt 0:00:38]} 6. Nxd4 {[%emt 0:01:40]} Bg7 {[%emt 0:00:17]} 7. Be3 {[%emt 0:00:21]} O-O {[%emt 0:02:01]} 8. Nc3 {[%emt 0:01:52]} a6 {[%emt 0:04:12]} 9. Ba4 {[%emt 0:07:12]} Na5 {[%emt 0:04:20]} 10. Nd5 {[%emt 0:13:45]} Nxd5 {[%emt 0:11:52]} 11. exd5 {[%emt 0:00:12]} Nc4 {[%emt 0:01:38]} 12. Bc1 {[%emt 0:06:59]} b5 {[%emt 0:10:07]} 13. Bb3 {[%emt 0:00:25]} Bb7 {[%emt 0:00:43]} 14. a4 {[%emt 0:09:05]} Qh4 {[%emt 0:07:41]} 15. axb5 {[%emt 0:02:55]} Bxd4 {[%emt 0:00:44]} 16. Bxc4 {[%emt 0:01:46]} axb5 {[%emt 0:03:04]} 17. Rxa8 {[%emt 0:00:40]} Bxa8 {[%emt 0:01:16]} 18. Bb3 {[%emt 0:02:42]} Be5 {[%emt 0:04:13]} 19. g3 {[%emt 0:02:25]} Qf6 {[%emt 0:01:13]} 20. Qg4 {[%emt 0:01:30]} Qd6 {[%emt 0:04:15]} 21. Rd1 {[%emt 0:02:45]} Bb7 {[%emt 0:04:58]} 22. Qe2 {[%emt 0:02:35]} b4 {[%emt 0:01:37]} 23. Bd2 {[%emt 0:02:52]} c5 {[%emt 0:01:49]} 24. Re1 {[%emt 0:02:04]} Re8 {[%emt 0:08:53]} 25. c3 {[%emt 0:01:13]} Bxd5 {[%emt 0:03:14]} 26. Qd3 {[%emt 0:00:04]} Be6 {[%emt 0:00:25]} 27. Qxd6 {[%emt 0:01:02]} Bxd6 {[%emt 0:00:07]} 28. cxb4 {[%emt 0:00:15]} cxb4 {[%emt 0:00:42]} 29. Re4 {[%emt 0:00:20]} Rb8 {[%emt 0:00:29]} 30. Bxe6 {[%emt 0:01:22]} fxe6 {[%emt 0:01:13]} 31. b3 {[%emt 0:00:50]} Bf8 {[%emt 0:01:59]} 32. h3 {[%emt 0:02:58]} Rb6 {[%emt 0:00:40]} 33. Rc4 {[%emt 0:01:01]} Rb7 {[%emt 0:00:53]} 34. Re4 {[%emt 0:00:58]} Be7 {[%emt 0:01:01]} 35. Kf1 {[%emt 0:00:30]} Kf7 {[%emt 0:00:20]} 36. Rf4+ {[%emt 0:01:21]} Ke8 {[%emt 0:00:06]} 37. Re4 {[%emt 0:01:16]} Rb6 {[%emt 0:00:48]} 38. h4 {[%emt 0:00:37]} d5 {[%emt 0:00:21]} 39. Rg4 {[%emt 0:00:31]} e5 {[%emt 0:02:34]} 40. h5 {[%emt 0:00:46]} Kf7 {[%emt 0:00:35]} 41. hxg6+ {[%emt 0:00:35]} Rxg6 {[%emt 0:03:42]} 42. Rxg6 {[%emt 0:00:22]} Kxg6 {[%emt 0:01:00]} 43. Ke2 {[%emt 0:00:10]} Kf5 {[%emt 0:00:20]} 44. f3 {[%emt 0:00:17]} h5 {[%emt 0:00:18]} 45. Be3 {[%emt 0:00:48]} Bd6 {[%emt 0:01:18]} 46. Bf2 {[%emt 0:00:50]} e4 {[%emt 0:00:55]} 47. Be1 {[%emt 0:01:32]} Bc5 {[%emt 0:01:32]} 48. Bd2 {[%emt 0:01:02]} exf3+ {[%emt 0:00:46]} 49. Kxf3 {[%emt 0:00:14]} d4 {[%emt 0:00:27]} 50. Bf4 {[%emt 0:00:46]} d3 {[%emt 0:00:32]} 51. Bd2 {[%emt 0:00:07]} Be7 {[%emt 0:01:06]} 52. Be1 {[%emt 0:00:29]} Bc5 {[%emt 0:00:38]} 53. Bd2 {[%emt 0:00:04]} Ke5 {[%emt 0:01:16]} 54. Be1 {[%emt 0:01:49]} Kd4 {[%emt 0:01:18]} 55. Bf2+ {[%emt 0:00:07]} Kd5 {[%emt 0:00:50]} 56. Be1 {[%emt 0:00:29]} Ke5 {[%emt 0:02:55]} 57. Bd2 {[%emt 0:02:04]} Be7 {[%emt 0:00:47]} 58. Be1 {[%emt 0:00:12]} Kf5 {[%emt 0:01:32]} 59. Ke3 {[%emt 0:01:58]} Kg4 {[%emt 0:00:37]} 60. Kxd3 {[%emt 0:00:23]} Bd6 {[%emt 0:00:11]} 61. Ke2 {[%emt 0:00:13]} Bc5 {[%emt 0:00:50]} 62. Kd3 {[%emt 0:13:04]} Bd6 63. Ke2 {[%emt 0:00:00]} Bc5 {[%emt 0:00:22]} 64. Kd3 {[%emt 0:00:00]} Kf3 {[%emt 0:00:55]} 65. Kc4 {[%emt 0:00:00]} Bd6 {[%emt 0:00:14]} 66. Bd2 {[%emt 0:00:00]} Bxg3 {[%emt 0:01:19]} 67. Bg5 {[%emt 0:00:00]} Be1 {[%emt 0:00:12]} 68. Be7 {[%emt 0:00:00]} Bc3 {[%emt 0:00:34]} 69. Kd3 {[%emt 0:00:00]} Be1 {[%emt 0:00:37]} 70. Kc4 {[%emt 0:00:00]} Kg3 {[%emt 0:00:49]} 71. Kd3 {[%emt 0:00:00]} Kf3 {[%emt 0:00:32]} 72. Kc4 {[%emt 0:00:00]} Ke3 {[%emt 0:00:37]} 73. Bg5+ {[%emt 0:00:00]} Ke2 {[%emt 0:00:16]} 74. Be7 {[%emt 0:00:00]} Bc3 {[%emt 0:00:45]} 75. Bd8 {[%emt 0:00:00]} Kd2 {[%emt 0:00:28]} 76. Be7 {[%emt 0:00:00]} Kc2 {[%emt 0:00:13]} 77. Bd8 {[%emt 0:00:00]} Be1 {[%emt 0:00:31]} 78. Be7 {[%emt 0:00:00]} Kd1 {[%emt 0:00:20]} 79. Kd3 {[%emt 0:00:37]} h4 {[%emt 0:01:14]} 80. Ke3 {[%emt 0:00:02]} h3 {[%emt 0:00:29]} 81. Kf3 {[%emt 0:00:13]} Kc2 {[%emt 0:00:37]} 82. Bxb4 {[%emt 0:00:07]} h2 {[%emt 0:00:21]} 83. Kg2 {[%emt 0:00:01]} Bxb4 {[%emt 0:00:07]} 84. Kxh2 {[%emt 0:00:05]} Kxb3 {[%emt 0:00:36]} *

[Event "1000GM Schev-G2 March 2024"]
[Site "Santa Clara"]
[Date "2024.03.10"]
[Round "2.2"]
[White "Garcia Guerrero, Isaac Antonio"]
[Black "Pullela, Sricharan"]
[Result "1/2-1/2"]
[ECO "B08"]
[WhiteElo "2300"]
[BlackElo "2114"]
[Annotator "RC"]
[PlyCount "75"]
[EventDate "2024.03.06"]
[EventType "schev"]
[EventCountry "USA"]
[SourceTitle "playchess.com"]
[Source "ChessBase"]
[SourceQuality "1"]
[TimeControl "5400+30"]

1. d4 {[%emt 0:00:04]} Nf6 {[%emt 0:02:07]} 2. Nf3 {[%emt 0:00:30]} g6 {[%emt 0:00:47]} 3. Nc3 {[%emt 0:00:16]} d6 {[%emt 0:02:33]} 4. e4 {[%emt 0:00:15]} Bg7 {[%emt 0:00:04]} 5. h3 {[%emt 0:00:13]} c6 {[%emt 0:00:31]} 6. a4 {[%emt 0:00:16]} Qc7 {[%emt 0:00:41]} 7. Be3 {[%emt 0:05:11]} O-O {[%emt 0:00:51]} 8. Be2 {[%emt 0:00:51]} e5 {[%emt 0:00:10]} 9. O-O {[%emt 0:00:36]} Nbd7 {[%emt 0:00:12]} 10. Re1 {[%emt 0:02:19]} Re8 {[%emt 0:00:19]} 11. Bf1 {[%emt 0:00:21]} Nf8 {[%emt 0:00:16]} 12. a5 {[%emt 0:03:43]} h6 {[%emt 0:01:11]} 13. Qd2 {[%emt 0:04:04]} Kh7 {[%emt 0:01:16]} 14. dxe5 {[%emt 0:02:36]} dxe5 {[%emt 0:01:06]} 15. Bc5 {[%emt 0:00:13]} N6d7 {[%emt 0:12:26]} 16. Bd6 {[%emt 0:05:45]} Qd8 {[%emt 0:00:36]} 17. Red1 {[%emt 0:00:17]} Qf6 {[%emt 0:00:28]} 18. Bc4 {[%emt 0:03:02]} Ne6 {[%emt 0:00:20]} 19. Bxe6 {[%emt 0:01:54]} Qxe6 {[%emt 0:00:43]} 20. Qe3 {[%emt 0:06:11]} Bf8 {[%emt 0:06:15]} 21. Bxf8 {[%emt 0:01:27]} Nxf8 {[%emt 0:00:38]} 22. Qc5 {[%emt 0:01:27]} Qe7 {[%emt 0:02:38]} 23. Na4 {[%emt 0:05:17]} Qxc5 {[%emt 0:01:07]} 24. Nxc5 {[%emt 0:00:07]} Kg7 {[%emt 0:02:28]} 25. Ra3 {[%emt 0:10:28]} Rb8 {[%emt 0:06:47]} 26. Rd6 {[%emt 0:04:36]} f6 {[%emt 0:31:56]} 27. Ne1 {[%emt 0:09:59]} Ne6 {[%emt 0:00:51]} 28. Ned3 {[%emt 0:01:54]} Nd4 {[%emt 0:01:39]} 29. c4 {[%emt 0:01:40]} Kf7 {[%emt 0:00:30]} 30. f4 {[%emt 0:00:30]} Ne2+ {[%emt 0:24:04]} 31. Kf2 {[%emt 0:00:35]} Nxf4 {[%emt 0:00:00]} 32. Nxf4 {[%emt 0:02:35]} exf4 {[%emt 0:00:00]} 33. Rb3 {[%emt 0:00:33]} Re5 {[%emt 0:00:00]} 34. Na6 {[%emt 0:08:09]} Ra8 {[%emt 0:00:00]} 35. Nc7 {[%emt 0:00:29]} Rb8 {[%emt 0:00:00]} 36. Na6 {[%emt 0:03:57]} Ra8 {[%emt 0:00:00]} 37. Nc7 {[%emt 0:00:06]} Rb8 {[%emt 0:00:00]} 38. Na6 {[%emt 0:00:12]} 1/2-1/2